bitfinex/quotes_ETHUSD_20240816
["timestamp","ask_amount","ask_price","bid_price","bid_amount"]
[1723789956260,8.037e-05,2618.0,2617.4,1.91027]
[1723789957304,8.037e-05,2618.0,2617.3,36.91036]
[1723789957480,1.90993037,2618.0,2617.3,35.0]
[1723789957786,1.91007,2617.7,2617.0,1.91058]
[1723789957991,1.91007,2617.7,2617.0,2.341338]
[1723789958290,1.91007,2617.7,2617.1,35.0]
[1723789958775,4.2431,2617.8,2617.0,0.430758]
[1723789958972,1.91029,2617.4,2616.7,1.91078]
[1723789959197,1.91022,2617.5,2616.8,1.91069]
[1723789959750,1.91029,2617.4,2616.7,35.4707263]
[1723789959950,4.618691,2617.6,2616.9,1.91065]
[1723789960150,1.91014,2617.6,2616.9,1.91065]
[1723789960408,1.91014,2617.6,2616.7,37.3815163]
[1723789960409,1.91022,2617.5,2616.7,37.3815163]
[1723789960693,1.91014,2617.6,2616.9,1.9106]
[1723789960896,19.68634,2617.7,2616.9,1.9106]
[1723789961400,19.68634,2617.7,2617.0,1.91054]
[1723789961757,21.59643,2617.7,2617.0,1.91054]
[1723789961950,23.73034321,2617.7,2617.0,1.91054]
[1723789962305,1.91021,2617.6,2616.9,1.9106]
[1723789962798,4.17137,2617.3,2616.6,0.39941297]
[1723789963298,1.91052,2617.1,2616.6,0.39941297]
[1723789964653,1.91058,2617.0,2616.6,0.39941297]
[1723789965103,1.9108,2616.7,2616.1,1.91117]
[1723789965615,31.31235,2616.9,2616.1,2.38621659]
[1723789965763,27.12634,2616.9,2616.3,1.91109]
[1723789966365,27.12634,2616.9,2616.4,2.2802]
[1723789966571,27.12634,2616.9,2616.5,0.419129]
[1723789967010,27.12634,2616.9,2616.4,2.2802]
[1723789967215,27.12634,2616.9,2616.5,1.91088]
[1723789967515,27.12634,2616.9,2616.4,4.1912]
[1723789967688,27.12634,2616.9,2616.4,1.911]
[1723789968900,27.12634,2616.9,2616.5,1.91093]
[1723789969402,27.12634,2616.9,2616.4,1.911]
[1723789969714,27.12634,2616.9,2616.6,1.91082]
[1723789969892,14.5613,2617.2,2616.6,1.91082]
[1723789969893,2.3813,2617.2,2616.6,1.91082]
[1723789970555,4.29175,2617.2,2616.6,1.91082]
[1723789970985,2.3813,2617.2,2616.6,1.91082]
[1723789971311,2.3813,2617.2,2616.6,2.3543155]
[1723789971600,4.29175,2617.2,2616.6,0.4434455]
[1723789971801,4.29175,2617.2,2616.5,1.91094]
[1723789972760,4.29175,2617.2,2616.6,1.91086]
[1723789973754,4.29175,2617.2,2616.4,0.612635]
[1723789973960,2.3813,2617.2,2616.3,1.91108]
[1723789974663,1.91064,2617.0,2616.3,1.91108]
[1723789977379,1.91066,2616.9,2616.3,1.91108]
[1723789977579,1.91066,2616.9,2616.1,0.39956648]
[1723789977819,2.29279,2616.9,2616.2,1.91115]
[1723789978116,1.91073,2616.8,2616.2,1.91115]
[1723789978412,1.91064,2617.0,2616.2,1.91115]
[1723789978631,2.3813,2617.2,2616.3,2.3971]
[1723789978784,9.35031,2617.4,2616.6,1.9108]
[1723789979162,9.35031,2617.4,2616.7,1.91074]
[1723789979681,1.91037,2617.3,2616.6,1.9108]
[1723789979883,3.57367974,2617.3,2616.6,1.9108]
[1723789980476,3.57367974,2617.3,2616.4,2.15071]
[1723789980477,1.91057,2617.1,2616.4,1.911]
[1723789980718,4.38999,2617.0,2616.4,1.911]
[1723789981079,1.91059,2617.0,2616.4,1.911]
[1723789981261,1.91059,2617.0,2616.3,4.30818]
[1723789981466,1.91066,2616.9,2616.2,1.91116]
[1723789981666,2.1373865,2617.0,2616.2,1.91109]
[1723789982469,0.2267965,2617.0,2616.4,1.91096]
[1723789982665,2.26788497,2617.1,2616.4,2.293165]
[1723789983001,1.91045,2617.2,2616.5,2.2648]
[1723789983815,1.91045,2617.2,2616.6,1.91087]
[1723789984022,4.15870974,2617.3,2616.5,2.2648]
[1723789984023,1.91052,2617.1,2616.5,2.2648]
[1723789984315,2.51744297,2617.1,2616.4,2.293155]
[1723789985228,2.51744297,2617.1,2616.4,1.91095]
[1723789985768,2.51744297,2617.1,2616.2,4.27805]
[1723789985988,2.51744297,2617.1,2616.2,4.67760774]
[1723789986202,1.9107,2616.9,2616.3,1.91108]
[1723789986370,2.51744297,2617.1,2616.4,1.91101]
[1723789986567,0.5670443,2617.0,2616.4,1.91101]
[1723789986822,1.91052,2617.1,2616.5,1.91089]
[1723789986971,1.91052,2617.1,2616.5,2.101979]
[1723789987170,1.91052,2617.1,2616.5,1.91089]
[1723789987419,6.06909974,2617.3,2616.7,1.91078]
[1723789987582,4.15870974,2617.3,2616.7,1.91078]
[1723789988410,7.44,2617.4,2617.0,1.91058]
[1723789988980,7.44,2617.4,2616.9,1.9106]
[1723789989184,7.44,2617.4,2616.9,3.82119]
[1723789989397,7.44,2617.4,2616.9,1.91059]
[1723789990718,21.59656,2617.5,2616.9,1.91059]
[1723789990873,25.40601125,2617.5,2616.9,1.91059]
[1723789992084,23.49579125,2617.5,2617.0,1.91057]
[1723789992338,23.49579125,2617.5,2616.9,1.91059]
[1723789992736,25.40601125,2617.5,2616.9,1.91059]
[1723789992900,25.40601125,2617.5,2616.7,4.38308]
[1723789992901,4.88599013,2617.4,2616.7,4.38308]
[1723789993449,4.88599013,2617.4,2616.8,1.91072]
[1723789993658,4.88599013,2617.4,2616.7,1.91078]
[1723789993813,1.91048,2617.2,2616.5,1.91092]
[1723789994146,1.91074,2616.8,2616.2,0.39955774]
[1723789994454,0.506374,2616.7,2616.2,2.31071774]
[1723789994603,1.91074,2616.8,2616.2,2.31071774]
[1723789994800,1.91074,2616.8,2616.2,0.39955774]
[1723789994801,1.91088,2616.6,2616.2,0.39955774]
[1723789995228,22.03384,2616.7,2616.2,0.39955774]
[1723789995547,19.68634,2616.7,2616.2,2.31069774]
[1723789995895,19.68634,2616.7,2616.3,1.91108]
[1723789996296,19.68634,2616.7,2616.2,0.39955774]
[1723789998846,21.59716,2616.7,2616.2,0.39955774]
[1723789999000,23.947954,2616.7,2616.2,0.39955774]
[1723789999194,22.037134,2616.7,2616.2,0.39955774]
[1723789999595,2.350794,2616.7,2616.2,0.39955774]
[1723790000032,1.91073,2616.8,2616.2,0.39955774]
[1723790000547,1.91088,2616.6,2616.2,0.39955774]
[1723790000747,4.31858,2616.6,2616.2,0.39955774]
[1723790000953,1.91095,2616.5,2616.2,0.39955774]
[1723790001166,4.31858,2616.6,2616.2,0.39955774]
[1723790001366,4.750438,2616.6,2616.2,0.39955774]
[1723790003453,19.68634,2616.9,2616.3,2.4552]
[1723790003654,7.44,2617.1,2616.3,2.4552]
[1723790003655,7.44,2617.1,2616.6,1.91085]
[1723790003852,7.44,2617.1,2616.7,2.4302]
[1723790004368,7.44,2617.1,2616.6,1.91085]
[1723790004734,19.68634,2617.5,2616.8,1.91067]
[1723790004938,12.9952,2617.7,2616.8,2.451]
[1723790004939,14.90534,2617.7,2616.8,2.451]
[1723790005139,3.400684,2617.6,2617.0,1.91053]
[1723790005378,3.400684,2617.6,2616.8,4.36167]
[1723790005577,3.400684,2617.6,2616.9,1.91065]
[1723790005778,1.91015,2617.6,2616.9,1.91065]
[1723790006741,1.91015,2617.6,2617.0,1.91058]
[1723790007335,1.91015,2617.6,2616.9,1.91065]
[1723790009542,1.91036,2617.4,2616.5,4.30761]
[1723790009870,1.91036,2617.4,2616.8,1.91073]
[1723790010377,1.91023,2617.5,2616.8,1.91073]
[1723790011286,1.9103,2617.4,2616.7,1.91074]
[1723790011486,1.9103,2617.4,2616.8,0.23814539]
[1723790012048,1.9103,2617.4,2616.8,2.14886539]
[1723790013355,1.91038,2617.3,2616.6,2.38153394]
[1723790013598,2.3034,2617.1,2616.4,0.39952941]
[1723790013881,1.91059,2617.0,2616.4,4.86154349]
[1723790014080,2.3034,2617.1,2616.5,1.91094]
[1723790014584,1.91041,2617.3,2616.5,1.91089]
[1723790014745,2.22571,2617.3,2616.6,1.91085]
[1723790015895,2.22571,2617.3,2616.6,2.3534]
[1723790015896,1.91045,2617.2,2616.6,2.3534]
[1723790016102,2.639352,2617.2,2616.6,2.3534]
[1723790016502,1.9107,2616.9,2616.5,0.39953607]
[1723790016668,2.10185,2616.8,2616.5,0.39953607]
[1723790016865,1.91078,2616.8,2616.1,1.91122]
[1723790017065,1.91078,2616.8,2616.2,0.39959816]
[1723790018211,1.91059,2617.0,2616.3,1.91109]
[1723790018366,1.91059,2617.0,2616.3,2.14217182]
[1723790019467,1.91066,2616.9,2616.3,0.23108182]
[1723790019670,1.91073,2616.8,2616.2,0.39959816]
[1723790019866,1.91088,2616.6,2616.2,0.39959816]
[1723790020679,1.91098,2616.5,2616.2,0.39959816]
[1723790021009,4.657541,2616.6,2616.2,0.39959816]
[1723790021308,1.91088,2616.6,2616.2,0.39959816]
[1723790022610,4.34674,2616.8,2616.2,0.39959816]
[1723790022907,1.91074,2616.8,2616.2,2.68989816]
[1723790023067,1.91074,2616.8,2616.3,0.46010682]
[1723790023905,1.91074,2616.8,2616.2,2.68989816]
[1723790024509,1.91061,2617.0,2616.2,2.68989816]
[1723790024510,1.91065,2616.9,2616.2,4.60104816]
[1723790024806,1.91074,2616.8,2616.2,2.68989816]
[1723790025012,1.91074,2616.8,2616.2,4.60105816]
[1723790025214,1.91061,2617.0,2616.4,1.911]
[1723790025412,1.91061,2617.0,2616.4,1.91101]
[1723790026519,1.91059,2617.0,2616.4,1.91101]
[1723790027575,1.91059,2617.0,2616.2,4.60105816]
[1723790027810,1.91059,2617.0,2616.3,1.91108]
[1723790027988,2.607995,2617.0,2616.2,4.60099816]
[1723790028636,1.91074,2616.8,2616.2,4.60105816]
[1723790030404,2.607995,2617.0,2616.3,1.91109]
[1723790030694,1.91066,2616.9,2616.2,4.60105816]
[1723790031328,1.91073,2616.8,2616.2,3.34113298]
[1723790031534,1.91073,2616.8,2616.2,2.68989816]
[1723790033113,1.91073,2616.8,2616.2,0.39959816]
[1723790033114,1.91102,2616.4,2616.2,0.39959816]
[1723790033322,1.91102,2616.4,2615.9,2.3211]
[1723790033323,0.191102,2616.3,2615.9,2.3211]
[1723790033684,0.191102,2616.3,2615.6,1.91155]
[1723790033685,2.102202,2616.3,2615.6,4.19115]
[1723790033802,2.102202,2616.3,2615.7,0.3996382]
[1723790034135,2.3124922,2616.2,2615.7,0.3996382]
[1723790034439,1.91102,2616.4,2615.7,0.3996382]
[1723790034742,1.91102,2616.4,2615.8,1.91145]
[1723790035448,1.91102,2616.4,2615.7,0.3996382]
[1723790035634,1.91102,2616.4,2615.7,2.3111582]
[1723790037143,19.68634,2616.5,2615.9,1.91138]
[1723790037295,19.68634,2616.5,2615.7,2.96139702]
[1723790037503,19.68634,2616.5,2615.7,4.2226382]
[1723790037504,1.91102,2616.4,2615.7,4.2226382]
[1723790038149,1.91102,2616.4,2615.7,4.2225882]
[1723790038348,1.91102,2616.4,2615.8,1.91145]
[1723790038779,19.68634,2616.5,2615.9,1.91133]
[1723790038977,1.91059,2617.0,2616.4,1.91101]
[1723790039467,1.91066,2616.9,2616.2,1.91111]
[1723790039750,3.0384416,2616.9,2616.2,1.91111]
[1723790040334,1.91075,2616.8,2616.0,4.28924]
[1723790040649,0.30551576,2616.8,2616.1,1.91118]
[1723790040945,0.0016716,2616.8,2616.1,1.91118]
[1723790041602,1.9124016,2616.8,2616.2,1.91116]
[1723790041804,0.0016716,2616.8,2616.2,2.5312]
[1723790042225,0.0016716,2616.8,2616.0,4.28924]
[1723790042429,1.91081,2616.7,2616.0,4.28924]
[1723790042609,0.0016716,2616.7,2616.1,1.91123]
[1723790042818,0.0016716,2616.7,2616.2,1.91116]
[1723790043405,1.9125016,2616.7,2616.0,4.28924]
[1723790043840,0.0016716,2616.7,2616.2,1.91116]
[1723790044343,0.0016716,2616.7,2616.2,3.82226]
[1723790044516,0.0016716,2616.7,2616.4,1.91102]
[1723790044724,0.0016716,2616.7,2616.5,2.4749]
[1723790045524,0.0016716,2616.7,2616.5,4.38584]
[1723790045821,0.0016716,2616.7,2616.5,2.4749]
[1723790046234,0.0016716,2616.7,2616.2,41.8199]
[1723790046430,0.0016716,2616.7,2616.3,0.99606162]
[1723790046751,0.0016716,2616.7,2616.5,1.9109]
[1723790047649,0.0016716,2616.7,2616.6,4.48020202]
[1723790047820,0.0016716,2616.7,2616.6,6.7626602]
[1723790048019,5.516e-05,2616.7,2616.6,8.09115994]
[1723790048221,1.90997037,2618.0,2617.2,2.414]
[1723790048415,1.90997,2617.9,2617.3,0.432446]
[1723790048617,1.90997,2617.9,2617.2,2.414]
[1723790048922,5.06297,2617.9,2617.0,1.91053]
[1723790049136,5.06297,2617.9,2617.1,1.91045]
[1723790049137,5.80084504,2617.9,2617.1,1.91045]
[1723790049316,5.80084504,2617.9,2617.2,1.98683973]
[1723790049517,5.06297,2617.9,2617.2,1.91043]
[1723790050164,5.06297,2617.9,2617.0,2.534048]
[1723790050165,1.91,2617.8,2617.0,2.534048]
[1723790050365,1.91,2617.8,2617.0,0.623518]
[1723790050567,1.91041,2617.3,2616.6,4.20044]
[1723790050715,1.91041,2617.3,2616.4,1.91101]
[1723790050716,5.06341,2617.3,2616.4,1.91101]
[1723790051051,8.037e-05,2618.0,2616.9,2.3212]
[1723790051052,1.91009,2617.7,2616.9,2.3212]
[1723790051262,1.91001,2617.8,2617.0,1.91058]
[1723790051571,1.91007,2617.7,2617.1,1.91051]
[1723790051748,1.91007,2617.7,2617.1,2.524746]
[1723790052111,1.90995,2617.9,2617.2,1.91043]
[1723790052358,1.90995,2617.9,2617.2,1.98684]
[1723790052668,1.90995,2617.9,2617.2,1.91043]
[1723790052876,8.037e-05,2618.0,2617.3,2.4919]
[1723790053155,8.037e-05,2618.0,2617.9,3.81984]
[1723790053315,8.037e-05,2618.0,2617.9,6.20044]
[1723790053656,8.037e-05,2618.0,2617.9,41.820484]
[1723790058713,8.037e-05,2618.0,2617.9,6.820484]
[1723790058938,8.037e-05,2618.0,2617.9,4.29052]
[1723790059456,0.1283166,2618.3,2618.2,6.2129]
[1723790059848,0.1283166,2618.3,2618.2,43.1226]
[1723790062239,0.1283166,2618.3,2618.2,45.0323]
[1723790062428,0.1283166,2618.3,2618.2,46.85509284]
[1723790063841,6.6e-06,2618.3,2618.2,46.85509284]
[1723790064145,6.6e-06,2618.3,2618.2,50.00809284]
[1723790065074,6.6e-06,2618.3,2618.2,48.09839284]
[1723790065244,6.6e-06,2618.3,2618.2,43.03569284]
[1723790065765,6.6e-06,2618.3,2618.2,50.00809284]
[1723790068338,2.3572,2619.7,2619.3,1.90888]
[1723790068734,2.59292,2619.7,2618.7,4.22402]
[1723790068936,1.90884,2619.4,2618.6,1.90936]
[1723790069262,1.90878,2619.5,2618.6,1.9094]
[1723790069263,2.4993,2619.2,2618.6,1.9094]
[1723790069461,2.4993,2619.2,2618.5,1.90946]
[1723790069462,2.4993,2619.2,2618.5,1.90942]
[1723790069766,4.40828,2619.2,2618.3,4.17371]
[1723790070067,4.40828,2619.2,2618.4,1.90955]
[1723790070279,4.40828,2619.2,2618.5,1.90948]
[1723790070575,4.40828,2619.2,2618.6,1.90941]
[1723790070761,3.131011,2619.2,2618.6,1.90941]
[1723790071569,2.4993,2619.2,2618.7,1.90932]
[1723790071784,2.4993,2619.2,2618.6,1.90941]
[1723790071785,2.4993,2619.2,2618.8,1.90926]
[1723790072284,1.90907,2619.1,2618.4,1.90953]
[1723790072490,2.159,2619.1,2618.4,1.90953]
[1723790072696,1.90907,2619.1,2618.4,1.90953]
[1723790073166,2.4993,2619.2,2618.4,1.90953]
[1723790073487,2.4993,2619.2,2618.6,1.9094]
[1723790073967,2.4993,2619.2,2618.4,1.90953]
[1723790074138,2.4993,2619.2,2618.2,36.90967]
[1723790074332,7.44,2619.4,2618.2,35.0]
[1723790074333,1.90927,2618.8,2618.2,35.0]
[1723790074681,2.3869,2618.5,2617.8,1.90996]
[1723790074883,2.3869,2618.5,2617.8,2.57233944]
[1723790075041,4.29644,2618.5,2617.8,37.57233944]
[1723790076696,1.90961,2618.4,2617.8,35.66235944]
[1723790077188,1.90961,2618.4,2617.9,1.603958]
[1723790077393,1.90993,2617.9,2617.6,0.39921442]
[1723790077713,1.90993,2617.9,2617.0,4.38485]
[1723790077714,0.190993,2617.8,2617.2,1.91043]
[1723790077887,4.19113,2617.9,2617.2,36.91043]
[1723790077888,2.2812,2617.9,2617.2,36.91043]
[1723790078466,4.19113,2617.9,2617.3,1.91036]
[1723790079360,1.91,2617.8,2617.2,35.0]
[1723790079598,1.91019,2617.6,2616.8,1.91068]
[1723790079771,1.91022,2617.5,2616.9,0.382144]
[1723790079973,4.21915,2617.6,2616.8,36.91073]
[1723790080206,4.21915,2617.6,2617.0,1.91058]
[1723790080404,2.309,2617.6,2617.0,1.91058]
[1723790080589,2.4492,2617.9,2617.0,1.91058]
[1723790080902,2.4492,2617.9,2617.3,1.91036]
[1723790081105,2.4492,2617.9,2617.4,1.98668463]
[1723790081260,1.90973,2618.2,2617.4,1.91028]
[1723790081261,2.4309,2618.2,2617.4,1.91028]
[1723790081460,2.4309,2618.2,2617.7,1.91007]
[1723790082509,2.4309,2618.2,2617.7,2.292098]
[1723790083770,2.4309,2618.2,2617.7,0.382028]
[1723790083970,2.4309,2618.2,2617.6,1.91013]
[1723790084574,2.4309,2618.2,2617.5,1.91021]
[1723790085622,1.90997,2617.9,2617.2,1.9104]
[1723790085830,1.91011,2617.7,2617.1,0.39936288]
[1723790085965,1.91015,2617.6,2617.1,0.39936288]
[1723790086501,1.91029,2617.4,2617.1,0.39936288]
[1723790086708,2.2712,2617.3,2616.8,35.0]
[1723790086902,4.30905,2617.6,2617.0,0.39946463]
[1723790087405,4.30905,2617.6,2617.0,35.39946463]
[1723790089214,4.30905,2617.6,2617.0,37.31004463]
[1723790089517,2.2678,2617.9,2617.2,1.91037]
[1723790089700,4.17773,2617.9,2617.2,1.91037]
[1723790089901,4.17773,2617.9,2617.3,0.191037]
[1723790090622,4.17773,2617.9,2617.1,1.91051]
[1723790090790,1.91,2617.8,2617.1,1.91051]
[1723790091217,2.2678,2617.9,2617.2,1.91042]
[1723790091383,4.26683,2618.3,2617.6,1.91009]
[1723790092115,2.3572,2618.3,2617.7,0.07639801]
[1723790092320,1.90953,2618.5,2617.8,0.076389]
[1723790092481,1.90956,2618.4,2617.7,0.191009]
[1723790093100,1.90956,2618.4,2617.7,2.101039]
[1723790093816,2.521217,2618.4,2617.7,2.101039]
[1723790094322,1.90956,2618.4,2617.8,1.90999]
[1723790095037,1.90963,2618.3,2617.7,2.101039]
[1723790095537,1.90956,2618.4,2617.7,2.101039]
[1723790096544,1.90965,2618.3,2617.7,2.101039]
[1723790097020,1.90956,2618.4,2617.7,2.101039]
[1723790097185,1.90956,2618.4,2617.6,1.91013]
[1723790097186,2.3973,2618.3,2617.6,1.91013]
[1723790097391,4.30698,2618.3,2617.7,1.91007]
[1723790097900,1.90972,2618.2,2617.6,0.19102]
[1723790098101,1.90978,2618.1,2617.5,1.9102]
[1723790098308,1.90978,2618.1,2616.9,0.78769386]
[1723790098309,1.91016,2617.6,2616.8,0.78769386]
[1723790098623,1.91016,2617.6,2616.5,5.05874715]
[1723790098624,0.191016,2617.5,2616.5,5.05874715]
[1723790098933,1.91016,2617.6,2616.5,5.05874715]
[1723790098934,1.9103,2617.4,2616.8,1.91073]
[1723790099242,1.9103,2617.4,2616.9,0.191073]
[1723790099907,1.91016,2617.6,2616.9,35.191073]
[1723790100339,2.4375,2617.8,2617.0,1.91057]
[1723790100504,2.4993,2618.1,2617.7,1.91006]
[1723790100705,1.90956,2618.4,2617.7,1.91006]
[1723790100706,1.90963,2618.3,2617.7,1.91006]
[1723790100957,0.440893,2618.2,2617.8,35.0]
[1723790101115,4.40887,2618.4,2617.7,1.91006]
[1723790101710,4.40887,2618.4,2617.8,1.90999]
[1723790101905,5.040702,2618.4,2617.8,1.90999]
[1723790102458,2.4993,2618.4,2618.0,1.90984]
[1723790102738,1.90942,2618.6,2617.9,1.90992]
[1723790103142,2.3528,2618.7,2618.0,1.90985]
[1723790103344,2.3331,2619.0,2617.8,2.35738349]
[1723790103507,2.3331,2619.0,2618.6,1.90941]
[1723790103709,7.44,2619.1,2618.6,1.90941]
[1723790104543,7.44,2619.1,2618.8,1.90925]
[1723790104744,7.44,2619.1,2619.0,1.90912]
[1723790104929,7.44,2619.1,2618.9,1.90918]
[1723790105137,7.44,2619.1,2619.0,1.90912]
[1723790105331,7.44,2619.1,2619.0,36.90912]
[1723790105647,6.44200405,2620.0,2619.3,1.9089]
[1723790105648,7.42582,2620.0,2619.3,1.9089]
[1723790106011,4.27282,2620.0,2619.4,1.90883]
[1723790106735,2.982507,2620.0,2619.4,1.90883]
[1723790107109,4.890907,2620.0,2619.2,1.90897]
[1723790107510,4.890907,2620.0,2619.3,1.9089]
[1723790108451,1.90847,2619.9,2619.2,1.90897]
[1723790109326,1.90866,2619.7,2618.8,1.90924]
[1723790109851,1.90866,2619.7,2619.0,1.90912]
[1723790110047,1.9086,2619.8,2619.0,1.90912]
[1723790110248,0.91487997,2619.8,2618.9,1.90915]
[1723790110455,2.82346997,2619.8,2619.0,1.90912]
[1723790110677,1.90848,2619.9,2619.3,1.9089]
[1723790111443,1.90848,2619.9,2619.3,2.290695]
[1723790111620,1.90848,2619.9,2619.3,0.381795]
[1723790111817,1.90848,2619.9,2619.2,1.90897]
[1723790112672,2.3644,2620.0,2619.2,1.90897]
[1723790112903,2.3644,2620.0,2619.0,4.25412]
[1723790112904,2.3644,2620.0,2618.8,1.90926]
[1723790113044,1.90869,2619.6,2618.9,1.90919]
[1723790113249,1.90869,2619.6,2619.0,1.9091]
[1723790113884,1.90869,2619.6,2618.9,1.90919]
[1723790114055,1.90869,2619.6,2619.0,0.190919]
[1723790114581,1.90869,2619.6,2619.0,2.100029]
[1723790114789,1.90869,2619.6,2618.9,1.90919]
[1723790115092,4.23756,2619.5,2618.9,1.90919]
[1723790115484,2.3288,2619.5,2618.9,1.90919]
[1723790116004,4.23756,2619.5,2618.9,1.90919]
[1723790116355,4.23756,2619.5,2618.8,1.90927]
[1723790117158,2.3288,2619.5,2618.6,1.90941]
[1723790117422,1.90897,2619.3,2618.6,1.90941]
[1723790117760,1.90898,2619.2,2618.5,36.90948]
[1723790117960,1.90897,2619.3,2618.5,35.0]
[1723790118257,1.90906,2619.1,2618.5,35.0]
[1723790118568,1.90906,2619.1,2618.3,1.90963]
[1723790118569,2.3174,2618.9,2618.3,1.90963]
[1723790118890,2.3174,2618.9,2618.4,1.90955]
[1723790119056,2.3174,2618.9,2618.4,36.90955]
[1723790119256,2.3174,2618.9,2618.4,1.90955]
[1723790119857,2.3174,2618.9,2618.5,1.90948]
[1723790120472,2.3174,2618.9,2618.4,36.90954]
[1723790120658,2.3174,2618.9,2618.5,1.90945]
[1723790120989,9.34906,2619.1,2618.5,1.90945]
[1723790120990,7.44,2619.1,2618.5,1.90945]
[1723790121404,7.44,2619.1,2618.4,35.0]
[1723790121695,7.44,2619.1,2618.8,1.90926]
[1723790122058,7.44,2619.1,2618.7,36.90928]
[1723790122258,7.44,2619.1,2618.8,1.90926]
[1723790122564,7.44,2619.1,2619.0,3.81824]
[1723790122758,7.44,2619.1,2618.7,37.452]
[1723790122759,7.44,2619.8,2619.2,1.90892]
[1723790123117,7.44,2619.8,2619.4,1.90883]
[1723790123662,7.44,2619.8,2619.2,1.90892]
[1723790124980,9.34857,2619.8,2619.1,1.90904]
[1723790126086,1.90862,2619.7,2618.9,1.90914]
[1723790126288,5.002962,2619.7,2618.9,1.90914]
[1723790126487,5.002962,2619.7,2619.0,1.90905]
[1723790126900,2.4424,2619.6,2619.0,1.90905]
[1723790127975,1.90877,2619.5,2618.6,1.90938]
[1723790128165,2.3659,2619.4,2618.6,1.90938]
[1723790128571,1.90896,2619.3,2618.6,1.90938]
[1723790128800,1.90898,2619.2,2618.6,1.90938]
[1723790129303,1.90896,2619.3,2618.6,1.90938]
[1723790130408,2.3659,2619.4,2618.7,1.90934]
[1723790130616,4.27474,2619.4,2618.7,1.90934]
[1723790131107,4.27473,2619.4,2618.6,1.90938]
[1723790131278,0.50192662,2619.3,2618.6,1.90938]
[1723790131467,4.27473,2619.4,2618.7,1.9093]
[1723790131672,2.3093,2619.7,2618.8,1.90924]
[1723790131881,2.3093,2619.7,2619.0,1.90907]
[1723790132301,2.3093,2619.7,2619.1,35.0]
[1723790132501,1.90877,2619.5,2618.9,0.190924]
[1723790132669,1.90877,2619.5,2618.8,1.90924]
[1723790133104,1.90877,2619.5,2618.8,36.90924]
[1723790134310,2.4684,2619.2,2618.8,35.0]
[1723790134682,2.4684,2619.2,2618.6,1.90938]
[1723790135178,2.4684,2619.2,2618.6,36.90938]
[1723790138099,2.4684,2619.2,2618.6,1.90938]
[1723790138596,2.4684,2619.2,2618.7,35.0]
[1723790139218,2.4684,2619.2,2618.5,1.90948]
[1723790139219,4.815163,2619.2,2618.5,1.90948]
[1723790139822,4.815163,2619.2,2618.6,35.0]
[1723790140226,2.906133,2619.2,2618.6,36.9094]
[1723790140560,2.4684,2619.2,2618.6,38.81875]
[1723790140864,2.4684,2619.2,2618.6,36.90935]
[1723790141855,2.4684,2619.2,2618.6,35.0]
[1723790142161,2.4684,2619.2,2618.6,36.9094]
[1723790142380,1.90905,2619.1,2618.6,35.0]
[1723790142525,1.90905,2619.1,2618.3,0.39918758]
[1723790142854,4.24497,2618.8,2618.3,0.39918758]
[1723790143080,4.24497,2618.8,2618.2,1.90965]
[1723790143238,1.90947,2618.6,2618.1,0.39927808]
[1723790143444,1.90947,2618.6,2617.8,1.90996]
[1723790143445,2.2773,2618.5,2617.8,1.90996]
[1723790143657,2.2773,2618.5,2617.9,0.190996]
[1723790144074,4.18679,2618.5,2617.9,0.190996]
[1723790145287,1.90956,2618.4,2617.9,0.190996]
[1723790145445,2.2773,2618.5,2618.0,1.90985]
[1723790145633,2.4259,2618.8,2618.1,0.2100846]
[1723790145980,2.4259,2618.8,2618.3,1.90962]
[1723790146777,2.4259,2618.8,2618.3,1.90961]
[1723790147073,2.4259,2618.8,2618.3,0.40293746]
[1723790148291,2.4259,2618.8,2617.9,0.190996]
[1723790148292,1.90942,2618.6,2617.9,0.190996]
[1723790148980,1.90942,2618.6,2618.0,1.90985]
[1723790149478,2.4972,2618.5,2617.9,0.190996]
[1723790149784,2.4972,2618.5,2617.9,2.100916]
[1723790149979,2.4972,2618.5,2618.0,0.441021]
[1723790150187,2.4972,2618.5,2618.0,2.350861]
[1723790150332,3.147,2619.5,2618.2,1.90965]
[1723790150333,2.4453,2618.9,2618.2,1.90965]
[1723790150538,2.4453,2618.9,2618.4,1.9095]
[1723790151359,2.4453,2618.9,2618.5,1.90949]
[1723790151565,2.4453,2618.9,2618.4,1.9095]
[1723790152299,2.3181,2619.2,2618.6,1.90941]
[1723790152468,2.3181,2619.2,2618.8,1.90925]
[1723790152783,2.3181,2619.4,2618.8,1.90925]
[1723790152941,2.3181,2619.4,2618.7,0.190941]
[1723790152942,2.3181,2619.4,2619.0,1.90905]
[1723790153342,2.3181,2619.4,2619.1,1.90904]
[1723790156590,2.3181,2619.4,2618.9,1.90916]
[1723790156733,2.3181,2619.4,2618.9,2.1191781]
[1723790156933,2.3181,2619.4,2619.0,1.90911]
[1723790157950,2.4422,2619.7,2619.1,1.90905]
[1723790158178,2.4422,2619.7,2619.2,0.190905]
[1723790158376,2.4422,2619.7,2619.1,1.90905]
[1723790158951,4.35082,2619.7,2619.1,1.90905]
[1723790159480,4.35082,2619.7,2618.9,2.1192081]
[1723790160253,1.9089,2619.3,2618.9,0.2100181]
[1723790160496,1.9089,2619.3,2618.6,4.45973455]
[1723790160497,2.3472,2619.2,2618.6,1.90941]
[1723790160715,2.3472,2619.2,2618.7,1.90929]
[1723790161052,2.3472,2619.2,2618.6,0.58099945]
[1723790161255,2.3472,2619.2,2618.5,1.90946]
[1723790161458,2.3472,2619.2,2618.6,1.90941]
[1723790162068,2.3472,2619.2,2618.7,1.90934]
[1723790162268,2.3472,2619.2,2618.8,0.190934]